[Event "Sardinia World Festival-A 2024"]
[Site "Orosei"]
[Date "2024.04.28"]
[Round "2.14"]
[White "Sivuk, Vitaly"]
[Black "Ibrayev, Nurlan"]
[Result "1-0"]
[ECO "E38"]
[WhiteElo "2551"]
[BlackElo "2368"]
[Annotator "TA"]
[PlyCount "77"]
[EventDate "2024.04.26"]
[EventType "swiss"]
[EventCountry "ITA"]
[SourceTitle "playchess.com"]
[Source "ChessBase"]
[SourceQuality "1"]
[TimeControl "40/5400+30:1800+30"]

{[%evp 24,77,39,15,38,36,35,36,46,36,34,26,43,-22,-16,-21,-18,-58,32,39,42,43,38,29,93,99,114,83,75,79,100,108,133,-58,30,36,51,41,156,92,78,77,93,15,443,431,576,561,658,473,551,568,677,668,668,670]} 1. d4 {[%emt 1:31:00]} Nf6 {[%emt 0:00:19]} 2. c4 {[%emt 0:00:00]} e6 {[%emt 0:00:07]} 3. Nc3 {[%emt 0:00:00]} Bb4 {[%emt 0:00:08]} 4. Qc2 {[%emt 0:00:00]} c5 {[%emt 0:00:45]} 5. dxc5 {[%emt 0:00:00]} Bxc5 {[%emt 0:00:05]} 6. Nf3 {[%emt 0:00:00]} Qb6 {[%emt 0:00:08]} 7. e3 {[%emt 0:00:00]} Qc7 {[%emt 0:00:04]} 8. g4 {[%emt 0:00:00] E38: Nimzo-Indian: Classical: 4...c5.} h6 {[%emt 0:03:45]} 9. Rg1 {[%emt 0:00:00]} Bf8 {[%emt 0:00:04]} 10. Bd2 {[%emt 0:00:00]} a6 $146 {[%emt 0:00:23]} ({Predecessor:} 10... b6 11. Nb5 Qd8 12. g5 hxg5 13. Nxg5 Rh6 14. Ne4 Nxe4 15. Qxe4 Nc6 16. Bc3 a6 {½-½ Izoria,Z (2610)-Kotsur,P (2563) Olympiad-38 Dresden 2008 (2)}) 11. h4 {[%emt 0:00:00]} h5 {[%emt 0:00:05]} 12. gxh5 {[%emt 0:00:00]} Rxh5 {[%emt 0:01:07]} 13. Be2 {[%emt 0:00:00]} Nc6 {[%emt 0:02:18]} 14. Rg5 {[%emt 0:00:00]} Rh8 {[%emt 0:18:58]} 15. O-O-O {[%emt 0:00:00]} d6 {[%emt 0:22:28]} 16. Kb1 {[%emt 0:00:00]} Bd7 {[%emt 0:05:46]} 17. Rc1 {[%emt 0:00:00]} Ne5 {[%emt 0:11:16]} 18. Qb3 {[%emt 0:00:00]} ({White should play} 18. Nxe5 $14 dxe5 19. h5) 18... Nxf3 $11 {[%emt 0:03:23]} 19. Bxf3 {[%emt 0:00:00]} Rxh4 {[%emt 0:00:10]} 20. Na4 {[%emt 0:09:30]} Ne4 {[%emt 0:11:56]} (20... Rc8 $15 21. Nb6 Rb8) 21. Bxe4 $1 $14 {[%emt 0:00:00]} Rxe4 {[%emt 0:00:01]} 22. Nb6 {[%emt 0:00:00]} Rb8 {[%emt 0:00:34]} 23. f4 {[%emt 0:00:00]} Bc6 {[%emt 0:07:46]} (23... Qc6 $11) 24. Rh5 $1 $16 {[%emt 0:00:00]} Qe7 {[%emt 0:03:43]} 25. Rg1 {[%emt 0:00:00]} e5 {[%emt 0:02:18]} 26. Rh8 {[%emt 0:00:00]} exf4 {[%emt 0:00:52]} 27. exf4 {[%emt 0:00:00]} Re2 {[%emt 0:01:05]} 28. Bc3 $2 {[%emt 0:00:00]} (28. Bb4 $16) 28... Qe3 {[%emt 0:02:19]} (28... f6 $15 29. Bb4 Qe4+ 30. Ka1 Ke7) 29. Qd1 $11 {[%emt 0:00:00]} Ke7 $1 {[%emt 0:00:32]} 30. Ka1 {[%emt 0:00:00]} (30. Bxg7 Bxg7 31. Rxg7 Re1 (31... Rxh8 32. Rg3 Qe4+ 33. Ka1 Rh1 34. Nc8+ Kf6 35. Rd3 Qxd3 36. Qxh1 Bxh1 37. a3 Qd4 38. Kb1 Qxb2#) (31... Rxh8 32. Nc8+ Rxc8 33. a3 Re1 34. Qxe1 Qxe1+ 35. Ka2 Be4 36. f5 Qb1+ 37. Kb3 Qc2+ 38. Ka2 Qxc4+ 39. Ka1 Qf1+ 40. Ka2 Bd5+ 41. b3 Rc2#)) 30... Re8 {[%emt 0:00:11]} (30... f6 $14) 31. c5 {[%emt 0:00:00]} (31. Bxg7 Bxg7 32. Rxe8+ Kxe8 33. Rxg7 Re1 34. Rg8+ Ke7 35. a4 Rxd1+ 36. Ka2 Qxb6 37. Rg3 Qb4 (37... Bxa4 38. f5 Rd2 39. Ka3 Rxb2 40. Re3+ Kd8 41. Re8+ Bxe8 42. f6 Qb4#) (37... Ra1+ 38. Kxa1 Qd4 39. Rc3 Qd1+ 40. Ka2 Qxa4+ 41. Kb1 Be4+ 42. Kc1 Qa1+ 43. Kd2 Qxb2+ 44. Ke3 Qxc3+ 45. Kxe4 Kf6 46. f5 Kg5 47. f6 Kg4 48. c5 dxc5 49. Kd5 Qd4#) 38. Re3+ Kd7 39. Rh3 Qxc4+ (39... Qxa4+ 40. Ra3 Qxc4+ 41. Rb3 f5 42. Ka3 Qa4#) 40. b3 Qc2+ (40... Qxf4 41. Rc3 Qd2+ 42. Rc2 Qxc2+ 43. Ka3 Qc1+ 44. Kb4 Qc5#) 41. Ka3 Qc1+ 42. Kb4 Qc5#) (31. Nd5+ Bxd5 32. cxd5 f6 $17) (31. Rf1 $142 $1) 31... dxc5 $16 {[%emt 0:00:37]} 32. Nc4 {[%emt 0:00:00]} Qe6 {[%emt 0:00:10] [#]} (32... Qxf4 $2 33. Qxe2+ Qe4 34. Re1 Qxe2 35. Rxe2+ Kd8 36. Rxe8+ Bxe8 37. Rxf8 $18) 33. Be5 {[%emt 0:00:00]} ({White should try} 33. Nd6 $1 $16 {[%cal Rd6e8]} Qxd6 (33... Rd8 $2 34. Nf5+ Qxf5 35. Qxe2+ Qe6 36. Re1 $18) 34. Qxe2+ Kd8 35. Be5) 33... Rxe5 $2 {[%emt 0:00:09][%mdl 8192]} (33... Rg2 $2 34. Re1 Qd5 35. Bd4+ (35. Bxg7+ Kd8 $18) 35... Kd8 36. Rxe8+ Kxe8 (36... Bxe8 $2 37. Bf6+ Kc7 38. Be5+ $18) 37. Qe1+ Qe6 38. Qxe6+ fxe6 39. Bxc5 $18) (33... Re4 $1 $11 {and Black stays safe.} 34. Qd6+ (34. Bd6+ Kd8 $15) 34... Qxd6 35. Nxd6 Rd8) 34. Nxe5 $18 {[%emt 0:00:00]} Be4 {[%emt 0:02:10]} 35. Qe1 {[%emt 0:00:00]} Qd5 {[%emt 0:01:15]} 36. Rh5 {[%emt 0:02:55]} Kd8 {[%emt 0:00:47] [#]} 37. Qe2 $1 {[%emt 0:00:30]} (37. Qa5+ Kc8 38. Rh8 f6 $11) 37... c4 {[%emt 0:00:38]} 38. Rd1 {[%emt 0:00:39]} (38. Qxc4 Rxe5 39. Qxd5+ Rxd5 $16) 38... Bd3 {[%emt 0:00:01]} 39. Nxd3 {[%emt 0:00:13]} ({Not} 39. Nxc4 Bxe2 40. Rhxd5+ Kc7 $16) 1-0

[Event "Sardinia World Festival-A 2024"]
[Site "Orosei"]
[Date "2024.04.28"]
[Round "2.15"]
[White "Kaczmarek, Aleksander"]
[Black "Samunenkov, Ihor"]
[Result "1-0"]
[ECO "B13"]
[WhiteElo "2362"]
[BlackElo "2548"]
[Annotator "TA"]
[PlyCount "51"]
[EventDate "2024.04.26"]
[EventType "swiss"]
[EventCountry "ITA"]
[SourceTitle "playchess.com"]
[Source "ChessBase"]
[SourceQuality "1"]
[TimeControl "40/5400+30:1800+30"]

{[%evp 13,51,0,0,0,2,-34,-45,-61,-50,-63,-71,-58,-61,-60,-77,-78,0,-375,-183,-177,-156,-217,-159,-147,204,91,112,62,488,492,486,469,735,728,736,720,1460,1387,2370,2239]} 1. e4 {[%emt 0:00:02]} c6 {[%emt 0:00:12][%cal Bc7c6,Bc6d5,Bd5c4][%mdl 32]} 2. d4 {[%emt 0:00:28]} d5 {[%emt 0:00:09]} 3. exd5 {[%emt 0:00:44]} cxd5 {[%emt 0:00:09]} 4. c4 {[%emt 0:00:04]} Nf6 {[%emt 0:01:34]} 5. Nc3 {[%emt 0:00:33]} Nc6 {[%emt 0:02:13][%cal Bb8c6,Bc6e5,Be5f3][%mdl 32]} 6. Bg5 {[%emt 0:03:49]} dxc4 {[%emt 0:01:57]} 7. d5 {[%emt 0:00:11]} Ne5 {[%emt 0:00:49]} 8. Nf3 {[%emt 0:00:46]} Bg4 {[%emt 0:18:20]} 9. Qd4 {[%emt 0:04:58]} Nxf3+ {[%emt 0:15:55]} 10. gxf3 {[%emt 0:00:10] Black is slightly better.} Bxf3 {[%emt 0:00:14]} 11. Bxc4 {[%emt 0:00:16][%cal Og5f6]} Bxh1 {[%emt 0:27:34]} 12. Bxf6 {[%emt 0:00:34]} a6 {[%emt 0:00:46] Repels Bb5+} (12... exf6 $2 13. Bb5+ Ke7 14. O-O-O $18 (14. Qe3+ Kd6 $18)) 13. Be5 {[%emt 0:00:13][%cal Oe1c1]} f6 {[%emt 0:10:23]} 14. d6 {[%emt 0:00:55]} Qa5 {[%emt 0:10:22]} (14... fxe5 $2 15. d7+ Qxd7 16. Bf7+ Kd8 17. Qb6+ Qc7 18. Rd1+ Kc8 (18... Bd5 19. Rxd5+ Kc8 20. Be6+ Kb8 21. Rd8+) 19. Be6+ Kb8 20. Rd8+ $18) (14... exd6 $1 $17 15. Bg3 Qc7) 15. d7+ $2 {[%emt 0:18:36]} (15. Bg3 $1 $11 {and White has nothing to worry.} Bc6 16. Be6 exd6 17. b4) 15... Kd8 $19 {[%emt 0:00:05]} 16. Bg3 {[%emt 0:00:15] Be6 is the strong threat.} e5 {[%emt 0:03:56]} 17. Qg4 {[%emt 0:02:50]} (17. Qd3 $17 b5 18. Bd5 Bxd5 19. Qxd5) 17... b5 {[%emt 0:03:00]} 18. Bb3 {[%emt 0:17:51] aiming for f3.} Bb7 {[%emt 0:00:41][%mdl 8192]} (18... Qb6 $1 $17 {...Ra7 would now be deadly.} 19. Rc1 Qc6) 19. O-O-O {[%emt 0:15:21]} (19. f4 $1 $18 {[%cal Rf4e5] and White stays clearly on top.}) 19... Qb6 $16 {[%emt 0:00:11] [#]} 20. Kb1 {[%emt 0:03:08] The board is on fire. White has more active pieces. The black rooks are passive.} (20. f4 $1 $16 {[%cal Rf4e5]} b4 21. Nd5 Bxd5 22. Rxd5 (22. Bxd5 Ra7 $11) 22... Qc6+ 23. Kb1) 20... a5 $2 {[%emt 0:00:48][%mdl 8192] [#]} (20... Ra7 $14) 21. f4 $1 $18 {[%emt 0:06:02] White is clearly winning.} a4 {[%emt 0:00:21]} 22. Bc2 {[%emt 0:01:19]} exf4 {[%emt 0:00:54]} (22... e4 $142 23. Nxe4 (23. Bxe4 Ra7 $18) 23... Bxe4 24. Bxe4 Ra7) 23. Bxf4 {[%emt 0:04:19] Strongly threatening Re1.} g5 {[%emt 0:00:30]} 24. Bg3 {[%emt 0:05:24]} Be7 {[%emt 0:00:49]} 25. Qe2 {[%emt 0:02:07][%cal Od1e1] Threatens to win with Re1!} Ra6 {[%emt 0:00:35]} 26. Nxb5 {[%emt 0:01:51] Weighted Error Value: White=0.44/Black=0.68.  Loses game:     	White=1     	Black=2      Mistake:       	White=3     	Black=2      Inaccurate:     	White=1     	Black=1      OK:         	White=4     	Black=7      Best:        	White=2     	Black=2      Strong:       	White=1     	---} 1-0

[Event "Sardinia World Festival-A 2024"]
[Site "Orosei"]
[Date "2024.04.28"]
[Round "2.16"]
[White "Bharath Subramaniyam H"]
[Black "Vagman, Roy"]
[Result "1-0"]
[ECO "B47"]
[WhiteElo "2544"]
[BlackElo "2357"]
[Annotator "TA"]
[PlyCount "79"]
[EventDate "2024.04.26"]
[EventType "swiss"]
[EventCountry "ITA"]
[SourceTitle "playchess.com"]
[Source "ChessBase"]
[SourceQuality "1"]
[TimeControl "40/5400+30:1800+30"]

{[%evp 9,79,22,43,33,35,7,16,9,13,23,42,35,39,38,45,47,39,46,46,54,43,53,47,0,6,0,0,7,29,40,73,62,56,39,102,90,98,94,81,65,66,66,256,89,546,265,388,409,384,333,386,0,187,0,374,385,827,631,551,0,872,928,926,929,29975,29976,29972,29973,29987,29988,29988,29988]} 1. e4 {[%emt 0:00:02]} c5 {[%emt 0:00:15]} 2. Nf3 {[%emt 0:00:10]} e6 {[%emt 0:01:42]} 3. Nc3 {[%emt 0:00:47]} Nc6 {[%emt 0:00:34]} 4. d4 {[%emt 0:00:52]} cxd4 {[%emt 0:00:12]} 5. Nxd4 {[%emt 0:00:07]} Qc7 {[%emt 0:00:19]} 6. Ncb5 {[%emt 0:00:59]} Qb8 {[%emt 0:03:48]} 7. Bd3 {[%emt 0:00:09]} a6 {[%emt 0:14:48]} 8. Nxc6 {[%emt 0:00:09] The position is equal.} bxc6 {[%emt 0:02:28]} 9. Nd4 {[%emt 0:01:44]} Qb6 {[%emt 0:12:07]} 10. Nf3 {[%emt 0:14:27] Active counter play!} d5 {[%emt 0:16:49]} 11. O-O {[%emt 0:02:21]} Nf6 {[%emt 0:03:25]} 12. e5 {[%emt 0:22:04]} Nd7 {[%emt 0:00:19]} 13. c4 {[%emt 0:00:07]} Be7 {[%emt 0:05:18]} 14. Qc2 {[%emt 0:04:59]} h6 {[%emt 0:01:35]} 15. cxd5 {[%emt 0:12:43]} cxd5 {[%emt 0:00:29]} 16. Be3 {[%emt 0:00:08]} Bc5 {[%emt 0:01:22]} 17. Bd2 {[%emt 0:03:38]} a5 {[%emt 0:05:31]} 18. Qa4 {[%emt 0:06:56][%cal Ob2b4] b4! would now be deadly.} Ba6 {[%emt 0:14:18]} 19. Bxa6 {[%emt 0:01:49]} Rxa6 {[%emt 0:00:08]} 20. Rac1 {[%emt 0:02:54][%cal Oc1c5] aiming for Rxc5!} Ra8 $1 {[%emt 0:02:43][%cal Ob6a7]} 21. Rc2 {[%emt 0:12:21]} Qa7 {[%emt 0:04:31]} (21... Ke7 $1 $14) 22. Qg4 $16 {[%emt 0:04:55]} g6 {[%emt 0:01:11]} 23. h4 {[%emt 0:01:49][%cal Bh2h4,Bh4h5][%mdl 32]} Kf8 {[%emt 0:02:26]} 24. h5 {[%emt 0:02:50]} g5 {[%emt 0:00:17]} 25. Qg3 {[%emt 0:00:13]} Kg7 $2 {[%emt 0:01:30] [#]} ({Black should try} 25... Bb6 $14) 26. Rfc1 $2 {[%emt 0:01:34]} (26. Bxg5 $1 $18 {and the rest is easy. Bf6+ is the strong threat.} hxg5 27. Nxg5) 26... Rhc8 $2 {[%emt 0:02:26][%mdl 8192] [#]} (26... Rhg8 $16 {is more resistant.}) 27. Nxg5 {[%emt 0:02:11]} (27. Bxg5 $142 $1 {[%mdl 512]} hxg5 28. Nxg5 Nxe5 (28... Bxf2+ 29. Rxf2 Rxc1+ 30. Kh2 $18) 29. Qxe5+ (29. Nxe6+ Kf6 $18) 29... Kf8 30. h6 (30. Ne4 dxe4 31. Rxc5 Rxc5 $18) 30... Bxf2+ 31. Kf1 Rxc2 32. Qg7+ (32. Rxc2 Bd4 $18) 32... Ke8 33. Rxc2 (33. Qg8+ Kd7 $18)) 27... hxg5 {[%emt 0:00:36]} (27... Bxf2+ {might work better.} 28. Qxf2 Rxc2 29. Nxe6+ (29. Rxc2 Qxf2+ 30. Kxf2 hxg5 $16) 29... fxe6 30. Rxc2 Qxf2+ 31. Kxf2 Kg8) 28. Qxg5+ $18 {[%emt 0:00:01]} Kh7 {[%emt 0:01:13]} 29. Qh6+ {[%emt 0:00:11]} Kg8 {[%emt 0:00:01]} 30. Qg5+ {[%emt 0:01:03]} (30. Be3 $142 Qb7 31. Bxc5 Nxc5 32. Rxc5 Rxc5 33. Rxc5) 30... Kh7 $1 {[%emt 0:00:06]} 31. Qh6+ $2 $40 {[%emt 0:00:03][%mdl 128] White attacks.} (31. Kh1 {Strongly threatening Rc3.} Qa6 32. Qf4) 31... Kg8 {[%emt 0:00:01]} 32. Be3 {[%emt 0:00:16]} Rc7 $2 {[%emt 0:02:34]} (32... Qb7 33. Bxc5 Nxc5 34. Rxc5 Rxc5) 33. Qg5+ {[%emt 0:00:18]} Kh7 {[%emt 0:00:28] And now ...Bxe3 would win.} 34. Qh6+ {[%emt 0:00:01]} (34. Rxc5 $142 Rxc5 35. Qh6+ (35. Bxc5 $2 {loses.} Nxc5 36. h6 Rg8 $19) 35... Kg8 36. Rc3 (36. Bxc5 Nxc5 37. Rc3 Ne4 $17) 36... Rxc3 37. Bxa7 (37. Qg5+ Kh7 $18)) 34... Kg8 {[%emt 0:00:00] [#]} 35. Bd4 {[%emt 0:02:08][%mdl 512]} Bxd4 {[%emt 0:01:51]} 36. Rxc7 {[%emt 0:00:08] Rc8+ would kill now.} Bxf2+ {[%emt 0:00:04]} 37. Kh1 {[%emt 0:00:40] White mates.} Qb8 {[%emt 0:01:02]} 38. Qg5+ {[%emt 0:00:21]} Kh7 {[%emt 0:00:31]} 39. Rxd7 {[%emt 0:00:16]} Qg8 {[%emt 0:00:22]} 40. Qf4 {[%emt 0:00:37] Weighted Error Value: White=0.82/Black=0.58.  Loses game:     	---       	Black=3      Missed win:     	White=1     	---        Mistake:       	White=3     	Black=3      Inaccurate:     	White=2     	Black=1      OK:         	White=9     	Black=12     Best:        	White=4     	---        Strong:       	---       	Black=2      Brilliant:      	White=1     	---} 1-0

[Event "Sardinia World Festival-A 2024"]
[Site "Orosei"]
[Date "2024.04.28"]
[Round "2.17"]
[White "Gloeckler, Christian"]
[Black "Erdogmus, Yagiz Kaan"]
[Result "0-1"]
[ECO "B13"]
[WhiteElo "2356"]
[BlackElo "2540"]
[Annotator "TA"]
[PlyCount "104"]
[EventDate "2024.04.26"]
[EventType "swiss"]
[EventCountry "ITA"]
[SourceTitle "playchess.com"]
[Source "ChessBase"]
[SourceQuality "1"]
[TimeControl "40/5400+30:1800+30"]

{[%evp 24,104,6,0,0,0,1,-7,33,20,37,23,36,0,58,45,36,41,39,37,43,35,47,35,52,23,19,8,29,0,8,-23,-19,-36,-20,-25,-24,-14,-9,-25,0,-62,0,0,0,-65,-64,-43,-52,-46,-46,-60,-54,-39,-37,-71,-48,-54,-54,-33,-41,-59,-23,-32,0,-8,-8,-8,-8,-8,0,0,0,-75,-104,-775,0,-40,0,-908,-891,-1629,742]} 1. e4 {[%emt 0:00:02]} c6 {[%emt 0:00:16]} 2. d4 {[%emt 0:00:12]} d5 {[%emt 0:00:06]} 3. exd5 {[%emt 0:00:09]} cxd5 {[%emt 0:00:06]} 4. Bd3 {[%emt 0:00:13]} Nc6 {[%emt 0:00:05]} 5. c3 {[%emt 0:00:06]} Qc7 {[%emt 0:00:03]} 6. Ne2 {[%emt 0:00:16]} e5 {[%emt 0:00:13] B13: Caro-Kann: Exchange Variation and Panov-Botvinnik Attack.} 7. dxe5 {[%emt 0:00:40]} Nxe5 {[%emt 0:00:09]} 8. Bb5+ {[%emt 1:32:52]} Bd7 {[%emt 0:00:39]} 9. Bxd7+ {[%emt 0:00:00]} Qxd7 {[%emt 0:00:03]} 10. O-O {[%emt 0:00:00]} Nf6 {[%emt 0:00:21]} 11. Bf4 {[%emt 0:00:00]} Bd6 {[%emt 0:06:52]} 12. Nd2 {[%emt 0:00:00]} O-O {[%emt 0:01:41]} 13. Qc2 $146 {[%emt 0:00:00]} ({Predecessor:} 13. Nd4 Rfe8 14. N2f3 Nc4 15. Bxd6 Qxd6 16. Qc2 Rac8 17. Rfe1 Qb6 18. Nf5 Ne4 19. Re2 {½-½ Mikaelyan,A (2454)-Harutjunyan,G (2455) ARM-ch 1st League 80th 2019 (5)}) 13... Rac8 {[%emt 0:15:52]} 14. Rad1 {[%emt 0:00:00]} Rfe8 {[%emt 0:04:29]} 15. Rfe1 {[%emt 0:00:00]} Neg4 {[%emt 0:06:38]} 16. Bxd6 {[%emt 0:00:00]} Qxd6 {[%emt 0:00:37]} 17. Nf1 {[%emt 0:00:00]} Qc5 {[%emt 0:15:00]} 18. Rd4 {[%emt 0:00:00]} Re4 {[%emt 0:30:12]} (18... Qxd4 $11 19. Nxd4 Rxe1) 19. Qd2 {[%emt 0:00:00]} Ne5 {[%emt 0:12:55]} 20. Nfg3 {[%emt 0:00:00]} Rxd4 {[%emt 0:02:12]} 21. Nxd4 {[%emt 0:00:00]} Nc4 {[%emt 0:00:27]} 22. Qc1 {[%emt 0:00:00]} Re8 {[%emt 0:01:34]} 23. Rxe8+ {[%emt 0:00:00]} Nxe8 {[%emt 0:00:12]} 24. Ngf5 {[%emt 0:00:00]} g6 {[%emt 0:01:07]} 25. Ne3 {[%emt 0:00:00]} Nf6 {[%emt 0:00:19]} 26. Nxc4 {[%emt 0:00:00]} Qxc4 {[%emt 0:00:05]} 27. Qf4 {[%emt 0:00:00]} Qxa2 {[%emt 0:01:03]} 28. h3 {[%emt 0:00:00]} Qa1+ {[%emt 0:00:33]} 29. Kh2 {[%emt 0:00:00]} Qa6 {[%emt 0:00:14]} 30. Qb8+ {[%emt 0:00:00]} Kg7 {[%emt 0:00:02]} 31. Qe5 {[%emt 0:00:00]} Qb6 {[%emt 0:00:42]} 32. b4 {[%emt 0:01:01]} ({Better is} 32. g4 $1 $11 Kf8 (32... Qxb2 33. Kg2 $11) 33. Kh1) 32... Kg8 {[%emt 0:00:39]} 33. Qb8+ {[%emt 0:00:52]} Kg7 {[%emt 0:00:01]} 34. Qe5 $1 {[%emt 0:00:07]} Qd8 {[%emt 0:01:09]} 35. Nb5 {[%emt 0:03:52]} Qe8 {[%emt 0:00:30]} 36. Qxe8 {[%emt 0:00:46]} Nxe8 {[%emt 0:00:01]} 37. Nxa7 {[%emt 0:00:02]} Nd6 {[%emt 0:01:53]} 38. Kg3 $1 {[%emt 0:00:36]} Kf6 {[%emt 0:00:00]} 39. Kf3 {[%emt 0:00:31]} Ke5 {[%emt 0:00:00]} 40. Ke3 {[%emt 0:01:53]} g5 {[%emt 0:00:31]} 41. g3 $1 {[%emt 0:33:05]} h5 {[%emt 0:05:56]} 42. f4+ $1 {[%emt 0:00:00]} gxf4+ {[%emt 0:00:07]} 43. gxf4+ {[%emt 0:00:00]} Ke6 {[%emt 0:02:42]} 44. Kd4 {[%emt 0:00:00]} h4 {[%emt 0:12:48]} 45. Kd3 {[%emt 0:00:00]} Kf5 {[%emt 0:02:00]} 46. Ke3 {[%emt 0:00:00]} Nc4+ {[%emt 0:05:23]} 47. Kf3 {[%emt 0:00:00]} Na3 {[%emt 0:02:29]} 48. Ke3 {[%emt 0:00:00]} (48. Nc8 $11) 48... Nc2+ $17 {[%emt 0:00:49]} 49. Kd2 $2 {[%emt 0:00:00][%mdl 8192] [#]} (49. Kf3 $17) 49... Na3 $2 {[%emt 0:00:27]} (49... Kxf4 $1 $19 50. Ke2 Kg3) 50. Ke3 $15 {[%emt 0:00:00]} Nc2+ $2 {[%emt 0:01:35][%mdl 8192]} (50... d4+ $15 51. cxd4 Nc2+ 52. Kf3 Nxd4+ 53. Ke3 Nc2+ 54. Kf3 Ne1+ (54... Nxb4 55. Nb5 $15) 55. Ke2 Nc2) 51. Kd2 $1 $19 {[%emt 0:00:00] [#]} Kxf4 $1 {[%emt 0:00:31]} 52. Kxc2 {[%emt 0:00:00]} Ke5 $4 {[%emt 0:00:05][%mdl 8192]} (52... Kg3 $19 53. Nb5 Kxh3) 0-1

[Event "Sardinia World Festival-A 2024"]
[Site "Orosei"]
[Date "2024.04.28"]
[Round "2.18"]
[White "Parkhov, Yair"]
[Black "Derakhshani, Borna"]
[Result "1-0"]
[ECO "B45"]
[WhiteElo "2513"]
[BlackElo "2355"]
[Annotator "TA"]
[PlyCount "61"]
[EventDate "2024.04.26"]
[EventType "swiss"]
[EventCountry "ITA"]
[SourceTitle "playchess.com"]
[Source "ChessBase"]
[SourceQuality "1"]
[TimeControl "40/5400+30:1800+30"]

{[%evp 15,61,30,54,41,49,56,58,65,69,50,66,63,64,51,63,58,68,66,64,67,74,66,72,72,107,102,434,433,554,563,547,552,535,529,531,562,535,552,560,510,481,466,601,472,962,947,29989,5497]} 1. e4 {[%emt 0:00:02]} c5 {[%emt 0:03:46]} 2. Nf3 {[%emt 0:00:12]} e6 {[%emt 0:00:34]} 3. d4 {[%emt 0:00:15]} cxd4 {[%emt 0:00:04]} 4. Nxd4 {[%emt 0:00:04]} Nc6 {[%emt 0:00:10]} 5. Nc3 {[%emt 0:00:09]} Nf6 {[%emt 0:00:06]} 6. Be2 {[%emt 0:02:05]} Bb4 {[%emt 0:03:44]} 7. O-O {[%emt 0:01:01]} O-O {[%emt 0:04:43]} 8. Nxc6 {[%emt 0:02:51]} bxc6 {[%emt 0:02:56]} 9. e5 {[%emt 0:00:25]} Nd5 {[%emt 0:05:21]} 10. Ne4 {[%emt 0:00:44]} f5 {[%emt 0:00:34]} 11. Nd6 {[%emt 0:02:14] White is slightly better.} Bxd6 {[%emt 0:06:00]} 12. exd6 {[%emt 0:00:22]} a5 {[%emt 0:00:17]} 13. c4 {[%emt 0:02:39]} Nf6 {[%emt 0:00:20]} 14. Bf4 {[%emt 0:04:37]} Qb6 {[%emt 0:13:48]} 15. Qd3 {[%emt 0:16:10]} Bb7 {[%emt 0:10:09] Black is weak on the dark squares} 16. Be5 $36 {[%emt 0:08:43][%mdl 2048] Black is under pressure.} Qc5 {[%emt 0:06:10]} 17. Qg3 {[%emt 0:01:56]} Rf7 {[%emt 0:08:50][%cal Bf8f7,Bf7g7,Bg7g6][%mdl 32]} 18. h4 {[%emt 0:05:13] White is more active.} Ne4 {[%emt 0:10:16]} 19. Qf4 {[%emt 0:00:46]} h6 {[%emt 0:01:57][%cal Bh7h6,Bh6g5][%mdl 32]} 20. Bh5 {[%emt 0:03:10]} g5 $2 {[%emt 0:05:08][%mdl 8192] A mistake that costs the game.} (20... Rff8 $16 {is more resistant.}) 21. hxg5 $1 $18 {[%emt 0:01:40]} (21. Bxf7+ Kxf7 22. hxg5 hxg5 $16) 21... hxg5 {[%emt 0:00:05]} 22. Qh2 {[%emt 0:13:24]} (22. Bxf7+ Kxf7 23. Qh2 Kg6 $16) 22... Rg7 {[%emt 0:04:54][%cal Of5f4] [#] ...f4! would now be deadly.} 23. Bg6 $1 {[%emt 0:01:54][%mdl 512]} Rxg6 {[%emt 0:00:44]} 24. Qh8+ {[%emt 0:00:05]} Kf7 {[%emt 0:00:02]} 25. Qh7+ {[%emt 0:00:06]} Kf8 {[%emt 0:00:02] [#]} 26. Bh8 {[%emt 0:00:09]} Qxd6 {[%emt 0:05:39]} 27. Qxg6 {[%emt 0:00:09]} Qe7 {[%emt 0:00:38] Inhibits Bg7+.} 28. Rad1 {[%emt 0:00:50]} d5 {[%emt 0:02:34]} 29. f3 {[%emt 0:02:26]} Ng3 {[%emt 0:04:50]} (29... Nd6 $142 30. cxd5 cxd5) 30. Rfe1 {[%emt 0:00:08]} Re8 {[%emt 0:00:34] [#]} 31. Rxe6 $3 {[%emt 0:01:04][%mdl 512] Weighted Error Value: White=0.17 (very precise) /Black=0.66.  Loses game:     	---       	Black=1      Mistake:       	---       	Black=1      Inaccurate:     	---       	Black=2      OK:         	White=14    	Black=6      Best:        	---       	Black=1      Strong:       	White=1     	---} 1-0